bitfinex/quotes_SOLUSD_20240621
["timestamp","ask_amount","ask_price","bid_price","bid_amount"]
[1718981412418,12.0618,133.48,133.39,6.566]
[1718981412419,6.0684,133.48,133.39,6.566]
[1718981412723,6.0684,133.48,133.38,45.5885]
[1718981412924,5.9945,133.46,133.38,14.9936]
[1718981413238,6.0684,133.48,133.38,14.9936]
[1718981413542,5.9952,133.44,133.4,5.9967]
[1718981413740,15.9158,133.45,133.38,5.9978]
[1718981414038,15.9158,133.45,133.31,16.98770694]
[1718981414039,5.9966,133.41,133.34,14.9982]
[1718981414227,5.9963,133.42,133.37,5.9983]
[1718981414432,15.9158,133.45,133.34,14.9982]
[1718981414637,5.9963,133.42,133.37,5.998]
[1718981415457,5.9971,133.4,133.35,5.9989]
[1718981416721,5.9976,133.39,133.34,5.9996]
[1718981417234,5.9971,133.4,133.35,5.9992]
[1718981417535,5.9987,133.37,133.32,6.0003]
[1718981417745,6.4956,133.39,133.27,30.0128]
[1718981417936,12.4933,133.39,133.34,5.9996]
[1718981418251,6.4956,133.39,133.27,30.0128]
[1718981418440,5.998,133.38,133.33,5.9998]
[1718981418744,12.4933,133.39,133.34,5.9996]
[1718981419057,6.3655,133.43,133.3,30.0055]
[1718981419344,5.9971,133.4,133.35,5.9991]
[1718981419740,14.9911,133.42,133.31,15.0026]
[1718981419920,5.9979,133.38,133.34,5.9994]
[1718981420125,0.17,133.41,133.32,6.0004]
[1718981420126,5.9983,133.37,133.32,6.0004]
[1718981420353,5.9988,133.36,133.31,6.0009]
[1718981420559,5.9981,133.38,133.33,5.9999]
[1718981420840,14.9935,133.4,133.3,15.0029]
[1718981421047,5.998,133.38,133.3,15.0029]
[1718981421345,5.9976,133.39,133.34,5.9996]
[1718981421529,6.3655,133.43,133.3,130.0066]
[1718981421729,6.3655,133.43,133.33,14.9995]
[1718981421730,5.9973,133.4,133.33,14.9995]
[1718981421941,21.3555,133.43,133.31,15.0023]
[1718981422138,6.3655,133.43,133.27,10.69084414]
[1718981422424,6.3655,133.43,133.26,114.9893]
[1718981422425,5.9988,133.36,133.32,6.0005]
[1718981422626,5.9985,133.37,133.32,6.0005]
[1718981423244,14.9935,133.4,133.32,6.0005]
[1718981423426,5.9991,133.36,133.29,15.0039]
[1718981423623,5.9991,133.36,133.31,6.0009]
[1718981423936,5.9993,133.35,133.3,6.0014]
[1718981424656,45.17,133.39,133.31,6.0009]
[1718981424852,5.9988,133.36,133.32,6.0005]
[1718981425038,5.9988,133.36,133.31,6.0008]
[1718981425239,12.0931,133.35,133.3,6.0013]
[1718981425836,5.9997,133.34,133.29,6.0018]
[1718981426371,5.9997,133.34,133.29,6.0017]
[1718981426662,6.0002,133.33,133.26,15.008]
[1718981426837,6.0002,133.33,133.28,6.002]
[1718981427349,6.0007,133.32,133.27,6.0024]
[1718981427539,6.0,133.34,133.29,6.0017]
[1718981428051,6.0,133.34,133.26,15.008]
[1718981428052,6.0001,133.33,133.28,6.0021]
[1718981428451,6.0011,133.31,133.26,6.0032]
[1718981428661,6.0011,133.31,133.24,15.0102]
[1718981428662,59.9993,133.34,133.27,6.0027]
[1718981428855,15.0024,133.32,133.22,15.0127]
[1718981429231,6.0016,133.3,133.25,6.0036]
[1718981429450,6.0012,133.31,133.23,15.0107]
[1718981429635,6.0007,133.32,133.27,6.0028]
[1718981429836,6.001,133.31,133.27,6.0028]
[1718981430041,6.0008,133.32,133.28,6.0023]
[1718981430250,12.0931,133.35,133.31,6.0008]
[1718981430551,270.0904,133.49,133.36,5.9986]
[1718981430552,21.6262,133.41,133.36,5.9986]
[1718981430754,21.6262,133.41,133.37,5.998]
[1718981430755,15.6296,133.41,133.37,5.998]
[1718981431257,21.6262,133.41,133.36,5.9986]
[1718981431951,6.214,133.42,133.3,110.70426396]
[1718981432149,21.6246,133.45,133.32,100.0]
[1718981432358,5.9952,133.44,133.4,5.9968]
[1718981432568,5.9952,133.44,133.37,14.9949]
[1718981432860,21.6243,133.45,133.4,5.9966]
[1718981433065,21.6243,133.45,133.41,5.9965]
[1718981433360,21.6243,133.45,133.4,5.9967]
[1718981433565,5.9952,133.44,133.39,5.9973]
[1718981433757,5.9952,133.44,133.37,14.9949]
[1718981433758,15.6296,133.45,133.37,14.9949]
[1718981433938,6.214,133.46,133.39,14.9929]
[1718981434139,22.2334,133.5,133.38,100.0]
[1718981434467,12.572,133.5,133.45,5.9946]
[1718981434651,6.5795,133.5,133.46,5.9942]
[1718981434860,12.572,133.5,133.45,5.9947]
[1718981435039,5.9917,133.52,133.47,5.9938]
[1718981435355,12.269,133.55,133.45,14.9867]
[1718981435556,12.269,133.55,133.43,129.9769]
[1718981435763,5.9918,133.52,133.43,29.9769]
[1718981435951,5.9918,133.52,133.44,14.9877]
[1718981436158,5.9912,133.53,133.44,14.9877]
[1718981436337,21.2545,133.55,133.48,5.9931]
[1718981436338,5.9908,133.54,133.48,5.9931]
[1718981436745,5.9912,133.53,133.48,5.9931]
[1718981436944,5.9916,133.52,133.47,5.9937]
[1718981437145,5.992,133.51,133.46,5.9942]
[1718981437460,21.2544,133.55,133.46,5.9942]
[1718981437659,5.9917,133.52,133.46,5.9942]
[1718981437860,21.2544,133.55,133.47,5.9937]
[1718981438042,5.9917,133.52,133.47,5.9937]
[1718981438366,5.9908,133.54,133.48,5.9932]
[1718981438564,5.9908,133.54,133.41,100.0]
[1718981438565,5.9908,133.54,133.49,5.9928]
[1718981438744,5.9912,133.53,133.48,5.9932]
[1718981438942,5.9912,133.53,133.46,14.9856]
[1718981438943,6.2787,133.55,133.5,5.9922]
[1718981439142,6.2787,133.55,133.48,14.9832]
[1718981439341,5.9908,133.54,133.49,5.9928]
[1718981439759,5.9911,133.53,133.48,5.9932]
[1718981439949,5.9908,133.54,133.48,5.9932]
[1718981440148,5.9913,133.53,133.45,14.9858]
[1718981440349,5.9922,133.51,133.46,5.9943]
[1718981440663,5.9914,133.53,133.48,5.9933]
[1718981440843,5.9914,133.53,133.47,5.9936]
[1718981441051,15.3196,133.52,133.44,5.995]
[1718981441245,15.3196,133.52,133.4,14.9921]
[1718981441246,5.9938,133.48,133.4,14.9921]
[1718981441445,45.0,133.51,133.4,14.9921]
[1718981441652,5.9931,133.49,133.44,5.9952]
[1718981441851,15.8154,133.5,133.38,14.9947]
[1718981442054,15.8154,133.5,133.43,5.9955]
[1718981442055,5.9937,133.48,133.43,5.9955]
[1718981442371,5.9936,133.48,133.43,5.9956]
[1718981442565,5.9943,133.46,133.41,5.9961]
[1718981442874,30.7967,133.5,133.4,5.9968]
[1718981442875,5.9947,133.45,133.4,5.9968]
[1718981443052,5.9945,133.46,133.41,5.9963]
[1718981443252,5.994,133.47,133.42,5.996]
[1718981443459,5.9944,133.46,133.41,5.9964]
[1718981443654,30.7967,133.5,133.36,29.9919]
[1718981443655,5.9939,133.47,133.42,5.996]
[1718981443857,5.9936,133.48,133.43,5.9956]
[1718981444169,5.9945,133.46,133.41,5.9964]
[1718981444366,5.9955,133.44,133.39,5.9971]
[1718981445067,5.9955,133.44,133.37,14.9957]
[1718981445068,6.0959,133.45,133.37,5.9981]
[1718981445259,6.0959,133.45,133.34,14.9982]
[1718981445260,45.17,133.44,133.36,5.9987]
[1718981445468,45.17,133.44,133.34,14.9982]
[1718981445769,5.9958,133.43,133.38,5.9976]
[1718981445968,12.0908,133.45,133.4,5.9967]
[1718981446184,12.0908,133.45,133.4,5.9968]
[1718981446387,36.9763,133.5,133.35,29.9951]
[1718981446683,5.9942,133.47,133.42,5.996]
[1718981446883,5.9951,133.45,133.4,5.9967]
[1718981447051,14.9833,133.49,133.38,14.9937]
[1718981447251,5.9943,133.46,133.38,14.9937]
[1718981447474,5.9943,133.46,133.41,5.9963]
[1718981447884,5.994,133.47,133.42,5.996]
[1718981448056,14.9833,133.49,133.41,5.9963]
[1718981448057,5.9943,133.46,133.41,5.9963]
[1718981448675,14.9844,133.48,133.36,14.9961]
[1718981448883,5.9956,133.44,133.39,5.9971]
[1718981449182,5.9952,133.44,133.4,5.997]
[1718981449387,5.9957,133.43,133.38,5.9975]
[1718981449552,45.34,133.47,133.35,5.9988]
[1718981449753,5.9967,133.41,133.36,5.9985]
[1718981450174,5.9967,133.41,133.37,5.9983]
[1718981450492,5.9967,133.41,133.36,5.9986]
[1718981450854,0.34,133.47,133.39,5.9973]
[1718981450855,5.9953,133.44,133.39,5.9973]
[1718981451654,0.17,133.45,133.34,14.999]
[1718981451879,14.9869,133.45,133.34,14.999]
[1718981452062,14.9869,133.45,133.32,30.0019]
[1718981452063,5.9958,133.43,133.38,5.9975]
[1718981452264,6.1654,133.44,133.39,5.9973]
[1718981452465,0.17,133.44,133.35,14.9972]
[1718981452770,5.9964,133.42,133.37,5.9983]
[1718981453080,5.9958,133.43,133.35,14.9972]
[1718981453265,5.9958,133.43,133.38,5.9978]
[1718981453453,5.9966,133.41,133.33,15.0002]
[1718981453773,5.9967,133.41,133.36,5.9985]
[1718981453968,5.9963,133.42,133.37,5.9981]
[1718981454282,5.9966,133.41,133.36,5.9986]
[1718981454463,5.9962,133.42,133.37,5.9981]
[1718981455164,5.9966,133.41,133.37,5.9981]
[1718981455375,5.9975,133.39,133.34,5.9995]
[1718981455592,5.9972,133.4,133.35,5.9991]
[1718981456480,5.9975,133.39,133.35,5.9991]
[1718981456677,5.9975,133.39,133.34,5.9995]
[1718981456865,5.998,133.38,133.33,5.9999]
[1718981457064,5.9976,133.39,133.34,5.9994]
[1718981457266,0.17,133.4,133.35,5.9991]
[1718981457476,5.9972,133.4,133.32,15.0014]
[1718981457667,6.3367,133.41,133.36,5.9987]
[1718981457863,6.6066,133.42,133.39,5.997]
[1718981458066,12.6029,133.42,133.31,30.0041]
[1718981458264,6.6066,133.42,133.31,30.0041]
[1718981458490,12.6027,133.42,133.31,30.0041]
[1718981458675,12.6029,133.42,133.34,14.9989]
[1718981458878,6.6066,133.42,133.34,14.9989]
[1718981459170,5.9976,133.39,133.35,5.9989]
[1718981459364,5.9971,133.4,133.35,5.9989]
[1718981459568,5.9974,133.39,133.34,5.9994]
[1718981459763,6.6066,133.42,133.33,14.9995]
[1718981459986,0.17,133.41,133.31,30.0041]
[1718981460288,5.9966,133.41,133.36,5.9986]
[1718981460995,6.6066,133.42,133.35,14.9972]
[1718981461166,12.6029,133.42,133.37,5.9983]
[1718981461496,12.6029,133.42,133.38,5.9976]
[1718981461497,6.6066,133.42,133.38,5.9976]
[1718981461867,6.6066,133.42,133.33,15.0003]
[1718981462161,5.9972,133.4,133.35,5.9989]
[1718981462376,5.9966,133.41,133.37,5.9982]
[1718981462582,12.6028,133.42,133.38,5.9978]
[1718981462767,12.6028,133.42,133.35,14.998]
[1718981462978,5.9967,133.41,133.37,5.9981]
[1718981463193,5.9967,133.41,133.36,5.9985]
[1718981463383,12.6029,133.42,133.37,5.9982]
[1718981463584,5.9966,133.41,133.37,5.9982]
[1718981463992,5.9965,133.41,133.37,5.9982]
[1718981464170,5.9966,133.41,133.37,5.9982]
[1718981464365,6.6066,133.42,133.37,5.9982]
[1718981464690,6.0448,133.46,133.34,100.0]
[1718981464987,15.9668,133.5,133.37,15.7218]
[1718981465165,5.9929,133.49,133.44,5.9951]
[1718981465372,15.9668,133.5,133.39,5.997]
[1718981465586,5.9935,133.48,133.43,5.9955]
[1718981465765,5.9932,133.49,133.44,5.9951]
[1718981465968,21.9594,133.5,133.45,5.9946]
[1718981466207,21.9594,133.5,133.37,45.712]
[1718981466208,6.0448,133.51,133.38,100.0]
[1718981466362,6.0448,133.51,133.37,68.252]
[1718981466363,6.0448,133.51,133.39,20.17]
[1718981466564,5.9933,133.49,133.43,5.9953]
[1718981466771,21.025,133.51,133.37,45.712]
[1718981466976,6.0448,133.51,133.44,5.9947]
[1718981467180,6.0448,133.51,133.38,165.34]
[1718981467181,6.0448,133.51,133.4,29.9835]
[1718981467383,6.0448,133.51,133.4,129.9835]
[1718981467581,22.3998,133.54,133.48,5.9931]
[1718981467788,5.9912,133.53,133.48,5.9931]
[1718981468069,5.9913,133.53,133.47,5.9936]
[1718981468269,5.9913,133.53,133.48,5.9933]
[1718981468972,16.409,133.54,133.4,29.9835]
[1718981469476,5.9931,133.49,133.44,5.9949]
[1718981469685,14.9789,133.53,133.45,5.9944]
[1718981469886,5.9932,133.49,133.43,5.9953]
[1718981470095,15.1523,133.5,133.37,15.7218]
[1718981470278,15.1523,133.5,133.37,30.7171]
[1718981470279,6.2577,133.47,133.37,30.7171]
[1718981470470,0.17,133.46,133.37,15.7218]
[1718981470675,5.9962,133.42,133.37,21.7199]
[1718981470998,16.4183,133.44,133.37,5.9981]
[1718981471297,0.17,133.43,133.39,5.9973]
[1718981471479,22.4139,133.44,133.39,5.9973]
[1718981471680,5.9957,133.43,133.37,5.998]
[1718981471890,5.9957,133.43,133.38,5.9977]
[1718981472099,6.2577,133.47,133.36,129.9924]
[1718981472321,16.4183,133.49,133.33,46.429]
[1718981472322,16.4183,133.49,133.46,5.9943]
[1718981472484,12.2497,133.51,133.39,6.2477]
[1718981472485,6.2577,133.51,133.39,6.2477]
[1718981472687,12.2498,133.51,133.46,5.9939]
[1718981473087,16.4183,133.53,133.42,29.9785]
[1718981473309,6.1303,133.55,133.5,5.9922]
[1718981473512,6.1303,133.55,133.42,29.9785]
[1718981473746,5.9912,133.53,133.45,14.9868]
[1718981473884,6.1303,133.55,133.49,5.9927]
[1718981474502,5.9914,133.53,133.45,14.9868]
[1718981474717,5.9908,133.54,133.49,5.9926]
[1718981475018,6.1303,133.55,133.5,5.9922]
[1718981475316,6.1303,133.55,133.5,5.9924]
[1718981475504,12.1209,133.55,133.49,5.9928]
[1718981475698,12.1209,133.55,133.5,5.9924]
[1718981476126,12.1209,133.55,133.49,5.9927]
[1718981476493,5.9907,133.54,133.49,5.9927]
[1718981476692,5.9907,133.54,133.46,14.9847]
[1718981476693,6.3003,133.55,133.46,5.9941]
[1718981476903,5.9909,133.54,133.42,29.9785]
[1718981477111,12.2906,133.55,133.5,5.9921]
[1718981477287,6.1303,133.55,133.51,5.9918]
[1718981477496,6.1303,133.55,133.52,5.9913]
[1718981477715,6.1303,133.55,133.52,5.9915]
[1718981477893,6.1303,133.55,133.46,14.9849]
[1718981478234,5.9907,133.54,133.49,5.9928]
[1718981478525,6.1303,133.55,133.5,5.9924]
[1718981478697,6.1303,133.55,133.51,5.9917]
[1718981478891,6.1303,133.55,133.51,5.992]
[1718981479113,12.1206,133.55,133.5,5.9924]
[1718981479415,6.1303,133.55,133.48,14.9825]
[1718981479941,6.1303,133.55,133.52,5.9913]
[1718981480155,6.1303,133.55,133.51,5.9919]
[1718981480655,15.5325,133.57,133.53,5.9909]
[1718981480819,6.3409,133.58,133.54,5.9906]
[1718981481010,6.3409,133.58,133.48,45.6864]
[1718981481217,21.2537,133.61,133.56,5.9895]
[1718981481416,15.266,133.61,133.52,14.9781]
[1718981481929,15.266,133.61,133.48,15.7204]
[1718981482246,15.266,133.61,133.51,29.9593]
[1718981482566,6.5354,133.62,133.58,5.9885]
[1718981482736,5.9879,133.61,133.56,5.9897]
[1718981482917,6.5354,133.62,133.52,14.9788]
[1718981483123,5.9881,133.6,133.55,5.9899]
[1718981483324,21.5035,133.62,133.49,20.0]
[1718981483524,5.9879,133.61,133.54,14.9764]
[1718981483741,5.988,133.6,133.49,20.0]
[1718981484053,5.988,133.6,133.48,45.6853]
[1718981484054,6.7054,133.62,133.48,15.7204]
[1718981484219,6.1587,133.59,133.54,5.9906]
[1718981484416,5.9889,133.58,133.53,5.9909]
[1718981484639,5.9889,133.58,133.5,14.9803]
[1718981484640,0.34,133.59,133.5,14.9803]
[1718981484821,5.9896,133.57,133.52,5.9912]
[1718981485030,6.159,133.58,133.53,5.9911]
[1718981485355,5.9904,133.55,133.47,44.9515]
[1718981485518,23.1068,133.57,133.47,44.9515]
[1718981485719,23.1068,133.57,133.44,15.5615]
[1718981485720,5.9914,133.53,133.48,5.993]
[1718981485930,0.17,133.56,133.44,30.5484]
[1718981485931,0.17,133.56,133.47,14.984]
[1718981486131,5.9905,133.55,133.5,5.9922]
[1718981486345,6.1599,133.56,133.51,5.9918]
[1718981486642,0.17,133.56,133.51,5.992]
[1718981486840,0.17,133.56,133.44,15.5615]
[1718981486841,5.9912,133.53,133.48,5.9931]
[1718981487011,5.9909,133.54,133.49,5.9927]
[1718981487215,5.9908,133.54,133.49,5.9928]
[1718981487459,0.17,133.56,133.48,14.9834]
[1718981487616,6.1601,133.56,133.51,5.9918]
[1718981487812,23.1068,133.57,133.51,5.9918]
[1718981488018,29.0963,133.57,133.52,5.9911]
[1718981488244,22.9368,133.57,133.54,5.9905]
[1718981488447,6.2789,133.57,133.54,5.9905]
[1718981489145,6.2789,133.57,133.53,5.9909]
[1718981489920,6.2789,133.57,133.48,14.9834]
[1718981489921,5.9898,133.56,133.48,14.9834]
[1718981490241,5.9904,133.55,133.5,5.9923]
[1718981490448,6.2789,133.57,133.45,14.9862]
[1718981490651,6.2789,133.57,133.44,15.5615]
[1718981490652,0.17,133.56,133.46,14.9848]
[1718981490823,6.3299,133.56,133.51,5.992]
[1718981491749,5.9903,133.55,133.5,5.9923]
[1718981491931,0.17,133.56,133.53,5.9908]
[1718981492132,6.2789,133.57,133.5,14.9812]
[1718981492639,6.2789,133.57,133.53,5.9909]
[1718981492848,5.9903,133.55,133.5,5.9922]
[1718981493052,6.2789,133.57,133.47,14.9841]
[1718981493431,0.34,133.56,133.47,14.9841]
[1718981493626,5.9904,133.55,133.5,5.9921]
[1718981494346,5.9907,133.54,133.49,5.9928]
[1718981494521,5.9911,133.53,133.49,5.9929]
[1718981494725,5.9912,133.53,133.48,5.9933]
[1718981494920,5.9916,133.52,133.45,14.9868]
[1718981495234,15.3154,133.56,133.48,5.9931]
[1718981495235,5.9913,133.53,133.48,5.9931]
[1718981495433,5.9912,133.53,133.48,5.9931]
[1718981495628,5.9916,133.52,133.48,5.9931]
[1718981495833,15.2021,133.54,133.46,5.994]
[1718981495834,5.9922,133.51,133.46,5.994]
[1718981496230,5.9925,133.5,133.43,14.9888]
[1718981496431,14.9793,133.52,133.41,30.248]
[1718981496740,0.34,133.53,133.43,14.988]
[1718981497046,5.9923,133.51,133.46,5.9942]
[1718981497247,5.993,133.49,133.44,5.9948]
[1718981497434,6.0445,133.52,133.42,14.9893]
[1718981497632,5.9927,133.5,133.45,5.9944]
[1718981497840,0.17,133.51,133.42,14.9893]
[1718981498057,0.17,133.51,133.44,14.9878]
[1718981498234,6.0445,133.52,133.44,14.9878]
[1718981498434,6.0445,133.52,133.48,5.9931]
[1718981498956,6.0445,133.52,133.41,15.2569]
[1718981499133,12.0363,133.52,133.47,5.9935]
[1718981499458,6.0445,133.52,133.48,5.9931]
[1718981499643,6.0445,133.52,133.48,5.9932]
[1718981499958,5.9926,133.5,133.45,5.9945]
[1718981500145,6.0445,133.52,133.42,14.9892]
[1718981500345,6.0445,133.52,133.39,6.2687]
[1718981500346,60.3205,133.51,133.39,6.2687]
[1718981500658,5.9925,133.5,133.45,5.9946]
[1718981500957,51.3321,133.51,133.46,5.9943]
[1718981501153,5.9926,133.5,133.45,5.9945]
[1718981501447,45.34,133.51,133.44,5.9947]
[1718981501448,5.9931,133.49,133.44,5.9947]
[1718981501749,5.9931,133.49,133.44,5.9948]
[1718981501951,5.9929,133.49,133.45,5.9947]
[1718981502166,5.9925,133.5,133.45,5.9944]
[1718981502333,45.34,133.51,133.42,14.9893]
[1718981502733,51.3322,133.51,133.46,5.9941]
[1718981503252,5.9931,133.49,133.44,5.995]
[1718981503634,45.34,133.51,133.4,14.9922]
[1718981503635,5.9934,133.48,133.4,14.9922]
[1718981503835,5.9941,133.47,133.42,5.9958]
[1718981504155,5.994,133.47,133.42,5.996]
[1718981504859,5.994,133.47,133.43,5.9955]
[1718981505029,6.1635,133.48,133.43,5.9955]
[1718981505234,6.1635,133.48,133.44,5.995]
[1718981505434,5.9939,133.47,133.43,5.9954]
[1718981505737,5.995,133.45,133.37,30.9494]
[1718981506045,6.348,133.45,133.41,5.9963]
[1718981506248,6.348,133.45,133.42,5.9959]
[1718981506450,6.348,133.45,133.39,14.9926]
[1718981506854,6.348,133.45,133.42,5.9958]
[1718981508350,6.1718,133.48,133.44,5.995]
[1718981508548,6.1718,133.48,133.39,29.9856]
[1718981508549,6.0018,133.48,133.39,29.9856]
[1718981508761,6.0018,133.48,133.45,5.9946]
[1718981509438,6.0018,133.48,133.44,14.9879]
[1718981509857,6.0018,133.48,133.46,5.9942]
[1718981510240,6.0018,133.48,133.46,5.9941]
[1718981510669,15.159,133.5,133.46,5.9941]
[1718981511044,21.1517,133.5,133.45,5.9945]
[1718981511372,37.99989113,133.66,133.42,14.99]
[1718981511373,15.0583,133.54,133.46,14.9849]
[1718981511556,6.5755,133.55,133.49,14.9813]
[1718981511954,6.5755,133.55,133.51,5.9918]
[1718981512274,6.5755,133.55,133.54,5.9907]
[1718981512444,22.8345,133.58,133.54,5.9905]
[1718981512646,28.8235,133.58,133.53,5.991]
[1718981512948,28.8235,133.58,133.54,5.9907]
[1718981513160,28.8235,133.58,133.53,5.9909]
[1718981513364,28.8235,133.58,133.52,5.9914]
[1718981513365,5.9894,133.57,133.52,5.9914]
[1718981514658,5.9898,133.56,133.52,5.9914]
[1718981514844,5.99,133.56,133.51,5.9918]
[1718981515046,0.17,133.57,133.5,5.9923]
[1718981515259,5.9906,133.55,133.5,5.9925]
[1718981515462,6.1607,133.54,133.5,5.9925]
[1718981515669,0.17,133.55,133.51,5.9918]
[1718981515981,51.3303,133.55,133.5,5.9923]
[1718981516271,22.8345,133.58,133.48,14.9826]
[1718981516445,28.8235,133.58,133.53,5.991]
[1718981516649,5.9895,133.57,133.52,5.9914]
[1718981517166,22.8345,133.58,133.52,5.9914]
[1718981517167,5.9898,133.56,133.52,5.9914]
[1718981517377,22.8345,133.58,133.53,5.9909]
[1718981517577,22.8345,133.58,133.44,110.73571326]
[1718981517578,22.8345,133.58,133.47,15.6556]
[1718981517777,0.8628919,133.64,133.59,5.9884]
[1718981517778,22.627,133.61,133.59,5.9884]
[1718981518089,28.6146,133.61,133.48,140.70131326]
[1718981518365,22.627,133.61,133.57,5.9892]
[1718981518565,28.6145,133.61,133.57,5.9892]
[1718981518773,5.9881,133.6,133.56,5.9896]
[1718981519148,22.627,133.61,133.55,5.9901]
[1718981519473,5.9887,133.59,133.54,5.9906]
[1718981519653,6.1581,133.6,133.55,5.9902]
[1718981519848,0.17,133.6,133.52,14.9789]
[1718981520082,6.158,133.6,133.56,5.9896]
[1718981520260,6.158,133.6,133.55,5.99]
[1718981520261,6.328,133.6,133.55,5.99]
[1718981520568,5.9885,133.59,133.54,5.9906]
[1718981520773,5.9892,133.58,133.53,5.991]
[1718981520953,5.9892,133.58,133.52,5.9914]
[1718981520954,6.1595,133.57,133.52,5.9914]
[1718981521166,0.17,133.57,133.47,14.9835]
[1718981521370,6.2852,133.56,133.5,5.9924]
[1718981521570,6.3302,133.55,133.51,5.9918]
[1718981521753,5.9916,133.52,133.48,5.9933]
[1718981522080,5.9923,133.51,133.46,5.9941]
[1718981522370,45.0,133.5,133.4,21.6632]
[1718981522582,45.34,133.53,133.4,21.6632]
[1718981522874,5.9925,133.5,133.4,21.6632]
[1718981523047,5.9929,133.49,133.45,5.9946]
[1718981523263,0.34,133.51,133.4,14.9922]
[1718981523461,0.17,133.48,133.4,14.9922]
[1718981523680,5.9939,133.47,133.42,5.9957]
[1718981523970,0.17,133.48,133.38,14.9947]
[1718981524175,5.994,133.47,133.42,5.9957]
[1718981524554,0.17,133.46,133.43,5.9953]
[1718981524973,0.17,133.46,133.4,14.9921]
[1718981524974,0.11921633,133.46,133.42,5.9959]
[1718981525154,0.11921633,133.46,133.43,5.9955]
[1718981525357,0.17,133.47,133.43,5.9955]
[1718981525545,0.17,133.47,133.38,14.9946]
[1718981525750,6.1639,133.47,133.42,5.996]
[1718981526250,6.1639,133.47,133.43,5.9956]
[1718981526452,0.17,133.47,133.43,5.9956]
[1718981526951,45.17,133.47,133.43,5.9956]
[1718981527152,0.17,133.46,133.43,5.9956]
[1718981528298,0.17,133.46,133.42,5.9959]
[1718981528662,0.17,133.46,133.43,5.9956]
[1718981529159,0.17,133.46,133.4,14.9915]
[1718981529473,0.17,133.46,133.43,5.9955]
[1718981529775,0.34,133.47,133.43,5.9955]
[1718981529978,51.334,133.47,133.4,14.9923]
[1718981530599,61.5239,133.47,133.39,5.9971]
[1718981530885,6.4076,133.43,133.32,22.0996]
[1718981531168,5.9965,133.41,133.36,5.9983]
[1718981531346,0.17,133.4,133.37,5.9982]
[1718981531552,0.17,133.4,133.36,5.9986]
[1718981531788,0.17,133.4,133.37,5.9982]
[1718981531954,6.167,133.4,133.32,15.0013]
[1718981532273,0.17,133.4,133.37,5.9983]
[1718981532457,6.4076,133.43,133.39,5.9971]
[1718981532661,0.34,133.42,133.4,5.9969]
[1718981532867,0.34,133.42,133.41,5.9965]
[1718981533177,0.34,133.42,133.38,14.9945]
[1718981533373,0.34,133.42,133.36,5.9984]
[1718981533374,5.9965,133.41,133.36,5.9984]
[1718981533573,5.9965,133.41,133.26,122.0996]
[1718981533574,45.17,133.4,133.34,5.9996]
[1718981533766,45.17,133.4,133.3,15.0026]
[1718981533767,5.9979,133.38,133.33,5.9998]
[1718981534158,5.9988,133.36,133.28,15.0058]
[1718981534367,5.9988,133.36,133.33,6.0001]
[1718981534368,0.17,133.35,133.33,6.0001]
[1718981534755,0.17,133.35,133.34,5.9997]
[1718981535066,6.0334,133.36,133.34,5.9997]